{"text_format":"1","workbook":"xlsx","n_sheets":6,"sheets":["Dashboard","Ayuda y Version","pBlock","pAccel0","pAccel1","empresa_ccaa"],"not_rendered":{"charts":12,"images":7,"macros":1,"external_links":0,"defined_names":6,"comments":0,"pivot_tables":0},"unopened":[],"bounds":{"document_bytes":16777216,"sheet_cells":100000,"rows_first":2000,"rows_last":500,"rows_between":2000,"halvings":0,"cell_chars":16384,"cell_head_chars":4096},"cells_cut":0,"cells_raw":0,"read":"whole","date_system":"1900"}

{"sheet":"Dashboard","index":0,"n_rows":49,"n_cols":83,"rows_kept":49,"cut":false,"hidden":false,"merged":[]}
[]
[]
[null,null,null,null,null,null,null,null,null,null,null,null,2018]
[null,null,null,null,null,null,null,null,null,null,null,null,"OCTUBRE",null,null,null,null,null,null,null,null,null,null,null,null,null,null,null,null,null,null,null,null,null,null,null,null,null,null,null,null,null,null,null,null,null,null,null,null,null,null,null,null,null,null,null,null,null,null,null,null,null,null,null,null,null,null,null,null,null,null,null,null,null,null,"Empresa - Sector","Empresa - Sector"]
["Acumulado a:",{"$f":"M4","v":"OCTUBRE"},null,null,"Datos acumulados",null,"Cuota Negocio / Total ASEMPLEO",null,null,{"$f":"empresa_ccaa!L5","v":"iEMPRESA"},null,"¿▲\"sin\" mi Empresa?",null,null,null,null,null,null,null,null,null,null,null,null,null,null,null,null,null,null,null,null,null,null,null,null,null,null,null,null,null,null,null,null,null,null,null,null,null,null,null,null,null,null,null,null,null,null,null,null,null,null,null,null,null,null,null,null,null,null,null,null,null,null,null,null,"p.p."]
["Total","Facturación, €",null,"(a)",{"$f":"J5","v":"iEMPRESA"},null,null,null,"Cuota de Facturación","∆",null,"(b)","∆ (a-b)",null,null,null,null,null,null,null,null,null,null,null,null,null,null,null,null,null,null,null,null,null,null,null,null,null,null,null,null,null,null,null,null,null,null,null,null,null,null,null,null,null,null,null,null,null,null,null,null,null,null,null,null,null,null,null,null,null,null,null,null,null,null,null,"Puntos porcentuales"]
[null,2017,2018,"% i.a.",{"$f":"B7","v":2017},{"$f":"C7","v":2018},"% i.a.",{"$f":"E7","v":2017},{"$f":"F7","v":2018},"Dif.P.P.",null,"% i.a.","Dif.P.P.",null,null,null,null,null,null,null,null,null,null,null,null,null,null,null,null,null,null,null,null,null,null,null,null,null,null,null,null,null,null,null,null,null,null,null,null,null,null,null,null,null,null,null,null,null,null,null,null,null,null,null,null,null,null,null,null,null,null,null,null,null,null,"Dif. Ritmo","Importancia Relativa",null,null,"Empresa"]
["Nacional",{"$f":"empresa_ccaa!F12","v":3085939767.2735066},{"$f":"empresa_ccaa!G12","v":3315479369.4289203},{"$f":"((C8/B8)-1)","v":7.4382398707093511E-2},{"$f":"empresa_ccaa!K12","v":0},{"$f":"empresa_ccaa!L12","v":0},{"$f":"IF(E8>0,((F8/E8)-1),\"n.a.\")","v":"n.a."},{"$f":"E8/B8","v":0},{"$f":"F8/C8","v":0},{"$f":"(I8-H8)*100","v":0},null,{"$f":"((C8-F8)/(B8-E8))-1","v":7.4382398707093511E-2},{"$f":"(D8-L8)*100","v":0},null,null,null,null,null,null,null,null,null,null,null,null,null,null,null,null,null,null,null,null,null,null,null,null,null,null,null,null,null,null,null,null,null,null,null,null,null,null,null,null,null,null,null,null,null,null,null,null,null,null,null,null,null,null,null,null,null,null,null,null,null,null,{"$f":"IF(G8=\"n.a.\",\"n.a.\",(G8-D8)*100)","v":"n.a."},{"$f":"empresa_ccaa!M12-empresa_ccaa!H12","v":{"$error":"#DIV/0!"}},null,"criterio_rank","peso","Comunidad","% i.a.","Total_Regional"]
["ANDALUCIA",{"$f":"empresa_ccaa!F13","v":281344044.21940112},{"$f":"empresa_ccaa!G13","v":288625419.65116131},{"$f":"((C9/B9)-1)","v":2.5880680900719266E-2},{"$f":"empresa_ccaa!K13","v":0},{"$f":"empresa_ccaa!L13","v":0},"n.a.",0,0,{"$f":"(I9-H9)*100","v":0},null,{"$f":"((C9-F9)/(B9-E9))-1","v":2.5880680900719266E-2},0,null,null,null,null,null,null,null,null,null,null,null,null,null,null,null,null,null,null,null,null,null,null,null,null,null,null,null,null,null,null,null,null,null,null,null,null,null,null,null,null,null,null,null,null,null,null,null,null,null,null,null,null,null,null,null,null,null,null,null,null,null,null,{"$f":"IF(G9=\"n.a.\",\"n.a.\",(G9-D9)*100)","v":"n.a."},{"$f":"empresa_ccaa!M13-empresa_ccaa!H13","v":{"$error":"#DIV/0!"}},null,{"$f":"IF(CB9=$CB$27,1,0)","v":1},{"$f":"I9","v":0},{"$f":"A9","v":"ANDALUCIA"},{"$f":"G9","v":"n.a."},{"$f":"D9","v":2.5880680900719266E-2}]
["ARAGON",{"$f":"empresa_ccaa!F14","v":169604054.9033367},{"$f":"empresa_ccaa!G14","v":166190783.11087042},{"$f":"((C10/B10)-1)","v":-2.0124942144877478E-2},{"$f":"empresa_ccaa!K14","v":0},{"$f":"empresa_ccaa!L14","v":0},"n.a.",0,0,0,null,-2.0124942144877478E-2,0,null,null,null,null,null,null,null,null,null,null,null,null,null,null,null,null,null,null,null,null,null,null,null,null,null,null,null,null,null,null,null,null,null,null,null,null,null,null,null,null,null,null,null,null,null,null,null,null,null,null,null,null,null,null,null,null,null,null,null,null,null,null,{"$f":"IF(G10=\"n.a.\",\"n.a.\",(G10-D10)*100)","v":"n.a."},{"$f":"empresa_ccaa!M14-empresa_ccaa!H14","v":{"$error":"#DIV/0!"}},null,{"$f":"IF(CB10=$CB$27,1,0)","v":1},{"$f":"I10","v":0},{"$f":"A10","v":"ARAGON"},{"$f":"G10","v":"n.a."},{"$f":"D10","v":-2.0124942144877478E-2}]
["ASTURIAS",{"$f":"empresa_ccaa!F15","v":59074292.715259984},{"$f":"empresa_ccaa!G15","v":61733974.347939424},4.5022657241097885E-2,{"$f":"empresa_ccaa!K15","v":0},{"$f":"empresa_ccaa!L15","v":0},"n.a.",0,0,0,null,4.5022657241097885E-2,0,null,null,null,null,null,null,null,null,null,null,null,null,null,null,null,null,null,null,null,null,null,null,null,null,null,null,null,null,null,null,null,null,null,null,null,null,null,null,null,null,null,null,null,null,null,null,null,null,null,null,null,null,null,null,null,null,null,null,null,null,null,null,{"$f":"IF(G11=\"n.a.\",\"n.a.\",(G11-D11)*100)","v":"n.a."},{"$f":"empresa_ccaa!M15-empresa_ccaa!H15","v":{"$error":"#DIV/0!"}},null,{"$f":"IF(CB11=$CB$27,1,0)","v":1},{"$f":"I11","v":0},{"$f":"A11","v":"ASTURIAS"},{"$f":"G11","v":"n.a."},{"$f":"D11","v":4.5022657241097885E-2}]
["BALEARES",{"$f":"empresa_ccaa!F16","v":15892106.057092566},{"$f":"empresa_ccaa!G16","v":14706108.935955891},-7.4628064831430585E-2,{"$f":"empresa_ccaa!K16","v":0},{"$f":"empresa_ccaa!L16","v":0},"n.a.",0,0,0,null,-7.4628064831430585E-2,0,null,null,null,null,null,null,null,null,null,null,null,null,null,null,null,null,null,null,null,null,null,null,null,null,null,null,null,null,null,null,null,null,null,null,null,null,null,null,null,null,null,null,null,null,null,null,null,null,null,null,null,null,null,null,null,null,null,null,null,null,null,null,{"$f":"IF(G12=\"n.a.\",\"n.a.\",(G12-D12)*100)","v":"n.a."},{"$f":"empresa_ccaa!M16-empresa_ccaa!H16","v":{"$error":"#DIV/0!"}},null,{"$f":"IF(CB12=$CB$27,1,0)","v":1},{"$f":"I12","v":0},{"$f":"A12","v":"BALEARES"},{"$f":"G12","v":"n.a."},{"$f":"D12","v":-7.4628064831430585E-2}]
["CANARIAS",{"$f":"empresa_ccaa!F17","v":78062358.269388378},{"$f":"empresa_ccaa!G17","v":80490428.901127845},3.1104243909213514E-2,{"$f":"empresa_ccaa!K17","v":0},{"$f":"empresa_ccaa!L17","v":0},"n.a.",0,0,0,null,3.1104243909213514E-2,0,null,null,null,null,null,null,null,null,null,null,null,null,null,null,null,null,null,null,null,null,null,null,null,null,null,null,null,null,null,null,null,null,null,null,null,null,null,null,null,null,null,null,null,null,null,null,null,null,null,null,null,null,null,null,null,null,null,null,null,null,null,null,{"$f":"IF(G13=\"n.a.\",\"n.a.\",(G13-D13)*100)","v":"n.a."},{"$f":"empresa_ccaa!M17-empresa_ccaa!H17","v":{"$error":"#DIV/0!"}},null,{"$f":"IF(CB13=$CB$27,1,0)","v":1},{"$f":"I13","v":0},{"$f":"A13","v":"CANARIAS"},{"$f":"G13","v":"n.a."},{"$f":"D13","v":3.1104243909213514E-2}]
["CANTABRIA",{"$f":"empresa_ccaa!F18","v":69764911.234166518},{"$f":"empresa_ccaa!G18","v":83188720.47260648},0.19241491175102099,{"$f":"empresa_ccaa!K18","v":0},{"$f":"empresa_ccaa!L18","v":0},"n.a.",0,0,0,null,0.19241491175102099,0,null,null,null,null,null,null,null,null,null,null,null,null,null,null,null,null,null,null,null,null,null,null,null,null,null,null,null,null,null,null,null,null,null,null,null,null,null,null,null,null,null,null,null,null,null,null,null,null,null,null,null,null,null,null,null,null,null,null,null,null,null,null,{"$f":"IF(G14=\"n.a.\",\"n.a.\",(G14-D14)*100)","v":"n.a."},{"$f":"empresa_ccaa!M18-empresa_ccaa!H18","v":{"$error":"#DIV/0!"}},null,{"$f":"IF(CB14=$CB$27,1,0)","v":1},{"$f":"I14","v":0},{"$f":"A14","v":"CANTABRIA"},{"$f":"G14","v":"n.a."},{"$f":"D14","v":0.19241491175102099}]
["CASTILLA-LA MANCHA",{"$f":"empresa_ccaa!F19","v":128089967.97597471},{"$f":"empresa_ccaa!G19","v":145716199.56820622},0.13760821296744785,{"$f":"empresa_ccaa!K19","v":0},{"$f":"empresa_ccaa!L19","v":0},"n.a.",0,0,0,null,0.13760821296744785,0,null,null,null,null,null,null,null,null,null,null,null,null,null,null,null,null,null,null,null,null,null,null,null,null,null,null,null,null,null,null,null,null,null,null,null,null,null,null,null,null,null,null,null,null,null,null,null,null,null,null,null,null,null,null,null,null,null,null,null,null,null,null,{"$f":"IF(G15=\"n.a.\",\"n.a.\",(G15-D15)*100)","v":"n.a."},{"$f":"empresa_ccaa!M19-empresa_ccaa!H19","v":{"$error":"#DIV/0!"}},null,{"$f":"IF(CB15=$CB$27,1,0)","v":1},{"$f":"I15","v":0},{"$f":"A15","v":"CASTILLA-LA MANCHA"},{"$f":"G15","v":"n.a."},{"$f":"D15","v":0.13760821296744785}]
["CASTILLA Y LEÓN",{"$f":"empresa_ccaa!F20","v":201310957.10059419},{"$f":"empresa_ccaa!G20","v":214737555.37331906},6.6695814604943005E-2,{"$f":"empresa_ccaa!K20","v":0},{"$f":"empresa_ccaa!L20","v":0},"n.a.",0,0,{"$f":"(I16-H16)*100","v":0},null,6.6695814604943005E-2,0,null,null,null,null,null,null,null,null,null,null,null,null,null,null,null,null,null,null,null,null,null,null,null,null,null,null,null,null,null,null,null,null,null,null,null,null,null,null,null,null,null,null,null,null,null,null,null,null,null,null,null,null,null,null,null,null,null,null,null,null,null,null,{"$f":"IF(G16=\"n.a.\",\"n.a.\",(G16-D16)*100)","v":"n.a."},{"$f":"empresa_ccaa!M20-empresa_ccaa!H20","v":{"$error":"#DIV/0!"}},null,{"$f":"IF(CB16=$CB$27,1,0)","v":1},{"$f":"I16","v":0},{"$f":"A16","v":"CASTILLA Y LEÓN"},{"$f":"G16","v":"n.a."},{"$f":"D16","v":6.6695814604943005E-2}]
["CATALUÑA",{"$f":"empresa_ccaa!F21","v":753447928.56242549},{"$f":"empresa_ccaa!G21","v":820399050.05021238},8.8859653002868022E-2,{"$f":"empresa_ccaa!K21","v":0},{"$f":"empresa_ccaa!L21","v":0},{"$f":"IF(E17>0,((F17/E17)-1),\"n.a.\")","v":"n.a."},0,0,{"$f":"(I17-H17)*100","v":0},null,8.8859653002868022E-2,0,null,null,null,null,null,null,null,null,null,null,null,null,null,null,null,null,null,null,null,null,null,null,null,null,null,null,null,null,null,null,null,null,null,null,null,null,null,null,null,null,null,null,null,null,null,null,null,null,null,null,null,null,null,null,null,null,null,null,null,null,null,null,{"$f":"IF(G17=\"n.a.\",\"n.a.\",(G17-D17)*100)","v":"n.a."},{"$f":"empresa_ccaa!M21-empresa_ccaa!H21","v":{"$error":"#DIV/0!"}},null,{"$f":"IF(CB17=$CB$27,1,0)","v":1},{"$f":"I17","v":0},{"$f":"A17","v":"CATALUÑA"},{"$f":"G17","v":"n.a."},{"$f":"D17","v":8.8859653002868022E-2}]
["COMUNIDAD VALENCIANA",{"$f":"empresa_ccaa!F22","v":224736662.38882649},{"$f":"empresa_ccaa!G22","v":240813524.03015253},7.1536443900331648E-2,{"$f":"empresa_ccaa!K22","v":0},{"$f":"empresa_ccaa!L22","v":0},"n.a.",0,0,{"$f":"(I18-H18)*100","v":0},null,7.1536443900331648E-2,0,null,null,null,null,null,null,null,null,null,null,null,null,null,null,null,null,null,null,null,null,null,null,null,null,null,null,null,null,null,null,null,null,null,null,null,null,null,null,null,null,null,null,null,null,null,null,null,null,null,null,null,null,null,null,null,null,null,null,null,null,null,null,{"$f":"IF(G18=\"n.a.\",\"n.a.\",(G18-D18)*100)","v":"n.a."},{"$f":"empresa_ccaa!M22-empresa_ccaa!H22","v":{"$error":"#DIV/0!"}},null,{"$f":"IF(CB18=$CB$27,1,0)","v":1},{"$f":"I18","v":0},{"$f":"A18","v":"COMUNIDAD VALENCIANA"},{"$f":"G18","v":"n.a."},{"$f":"D18","v":7.1536443900331648E-2}]
["EXTREMADURA",{"$f":"empresa_ccaa!F23","v":19306564.470813364},{"$f":"empresa_ccaa!G23","v":22472286.942321345},0.16397129982880965,{"$f":"empresa_ccaa!K23","v":0},{"$f":"empresa_ccaa!L23","v":0},"n.a.",0,0,0,null,0.16397129982880965,0,null,null,null,null,null,null,null,null,null,null,null,null,null,null,null,null,null,null,null,null,null,null,null,null,null,null,null,null,null,null,null,null,null,null,null,null,null,null,null,null,null,null,null,null,null,null,null,null,null,null,null,null,null,null,null,null,null,null,null,null,null,null,{"$f":"IF(G19=\"n.a.\",\"n.a.\",(G19-D19)*100)","v":"n.a."},{"$f":"empresa_ccaa!M23-empresa_ccaa!H23","v":{"$error":"#DIV/0!"}},null,{"$f":"IF(CB19=$CB$27,1,0)","v":1},{"$f":"I19","v":0},{"$f":"A19","v":"EXTREMADURA"},{"$f":"G19","v":"n.a."},{"$f":"D19","v":0.16397129982880965}]
["GALICIA",{"$f":"empresa_ccaa!F24","v":154053613.83700904},{"$f":"empresa_ccaa!G24","v":178289299.31676883},0.15731981143526763,{"$f":"empresa_ccaa!K24","v":0},{"$f":"empresa_ccaa!L24","v":0},"n.a.",0,0,0,null,0.15731981143526763,0,null,null,null,null,null,null,null,null,null,null,null,null,null,null,null,null,null,null,null,null,null,null,null,null,null,null,null,null,null,null,null,null,null,null,null,null,null,null,null,null,null,null,null,null,null,null,null,null,null,null,null,null,null,null,null,null,null,null,null,null,null,null,{"$f":"IF(G20=\"n.a.\",\"n.a.\",(G20-D20)*100)","v":"n.a."},{"$f":"empresa_ccaa!M24-empresa_ccaa!H24","v":{"$error":"#DIV/0!"}},null,{"$f":"IF(CB20=$CB$27,1,0)","v":1},{"$f":"I20","v":0},{"$f":"A20","v":"GALICIA"},{"$f":"G20","v":"n.a."},{"$f":"D20","v":0.15731981143526763}]
["MADRID",{"$f":"empresa_ccaa!F25","v":480458927.10074621},{"$f":"empresa_ccaa!G25","v":503887515.55915648},4.8762937135514051E-2,{"$f":"empresa_ccaa!K25","v":0},{"$f":"empresa_ccaa!L25","v":0},"n.a.",0,0,0,null,4.8762937135514051E-2,0,null,null,null,null,null,null,null,null,null,null,null,null,null,null,null,null,null,null,null,null,null,null,null,null,null,null,null,null,null,null,null,null,null,null,null,null,null,null,null,null,null,null,null,null,null,null,null,null,null,null,null,null,null,null,null,null,null,null,null,null,null,null,{"$f":"IF(G21=\"n.a.\",\"n.a.\",(G21-D21)*100)","v":"n.a."},{"$f":"empresa_ccaa!M25-empresa_ccaa!H25","v":{"$error":"#DIV/0!"}},null,{"$f":"IF(CB21=$CB$27,1,0)","v":1},{"$f":"I21","v":0},{"$f":"A21","v":"MADRID"},{"$f":"G21","v":"n.a."},{"$f":"D21","v":4.8762937135514051E-2}]
["MURCIA",{"$f":"empresa_ccaa!F26","v":169130422.23822302},{"$f":"empresa_ccaa!G26","v":187648796.03860548},0.10949167840602336,{"$f":"empresa_ccaa!K26","v":0},{"$f":"empresa_ccaa!L26","v":0},"n.a.",0,0,0,null,0.10949167840602336,0,null,null,null,null,null,null,null,null,null,null,null,null,null,null,null,null,null,null,null,null,null,null,null,null,null,null,null,null,null,null,null,null,null,null,null,null,null,null,null,null,null,null,null,null,null,null,null,null,null,null,null,null,null,null,null,null,null,null,null,null,null,null,{"$f":"IF(G22=\"n.a.\",\"n.a.\",(G22-D22)*100)","v":"n.a."},{"$f":"empresa_ccaa!M26-empresa_ccaa!H26","v":{"$error":"#DIV/0!"}},null,{"$f":"IF(CB22=$CB$27,1,0)","v":1},{"$f":"I22","v":0},{"$f":"A22","v":"MURCIA"},{"$f":"G22","v":"n.a."},{"$f":"D22","v":0.10949167840602336}]
["NAVARRA",{"$f":"empresa_ccaa!F27","v":97600417.796693206},{"$f":"empresa_ccaa!G27","v":116856447.87946802},0.19729454563284898,{"$f":"empresa_ccaa!K27","v":0},{"$f":"empresa_ccaa!L27","v":0},"n.a.",0,0,0,null,0.19729454563284898,0,null,null,null,null,null,null,null,null,null,null,null,null,null,null,null,null,null,null,null,null,null,null,null,null,null,null,null,null,null,null,null,null,null,null,null,null,null,null,null,null,null,null,null,null,null,null,null,null,null,null,null,null,null,null,null,null,null,null,null,null,null,null,{"$f":"IF(G23=\"n.a.\",\"n.a.\",(G23-D23)*100)","v":"n.a."},{"$f":"empresa_ccaa!M27-empresa_ccaa!H27","v":{"$error":"#DIV/0!"}},null,{"$f":"IF(CB23=$CB$27,1,0)","v":1},{"$f":"I23","v":0},{"$f":"A23","v":"NAVARRA"},{"$f":"G23","v":"n.a."},{"$f":"D23","v":0.19729454563284898}]
["PAIS VASCO",{"$f":"empresa_ccaa!F28","v":157731184.43364656},{"$f":"empresa_ccaa!G28","v":162069759.20116287},2.7506131923718868E-2,{"$f":"empresa_ccaa!K28","v":0},{"$f":"empresa_ccaa!L28","v":0},"n.a.",0,0,0,null,2.7506131923718868E-2,0,null,null,null,null,null,null,null,null,null,null,null,null,null,null,null,null,null,null,null,null,null,null,null,null,null,null,null,null,null,null,null,null,null,null,null,null,null,null,null,null,null,null,null,null,null,null,null,null,null,null,null,null,null,null,null,null,null,null,null,null,null,null,{"$f":"IF(G24=\"n.a.\",\"n.a.\",(G24-D24)*100)","v":"n.a."},{"$f":"empresa_ccaa!M28-empresa_ccaa!H28","v":{"$error":"#DIV/0!"}},null,{"$f":"IF(CB24=$CB$27,1,0)","v":1},{"$f":"I24","v":0},{"$f":"A24","v":"PAIS VASCO"},{"$f":"G24","v":"n.a."},{"$f":"D24","v":2.7506131923718868E-2}]
["RIOJA (LA)",{"$f":"empresa_ccaa!F29","v":26331353.969909195},{"$f":"empresa_ccaa!G29","v":27653500.049885936},5.0211853195534673E-2,{"$f":"empresa_ccaa!K29","v":0},{"$f":"empresa_ccaa!L29","v":0},"n.a.",0,0,0,null,5.0211853195534673E-2,0,null,null,null,null,null,null,null,null,null,null,null,null,null,null,null,null,null,null,null,null,null,null,null,null,null,null,null,null,null,null,null,null,null,null,null,null,null,null,null,null,null,null,null,null,null,null,null,null,null,null,null,null,null,null,null,null,null,null,null,null,null,null,{"$f":"IF(G25=\"n.a.\",\"n.a.\",(G25-D25)*100)","v":"n.a."},{"$f":"empresa_ccaa!M29-empresa_ccaa!H29","v":{"$error":"#DIV/0!"}},null,{"$f":"IF(CB25=$CB$27,1,0)","v":1},{"$f":"I25","v":0},{"$f":"A25","v":"RIOJA (LA)"},{"$f":"G25","v":"n.a."},{"$f":"D25","v":5.0211853195534673E-2}]
[null,null,null,null,null,null,null,null,null,null,null,null,null,null,null,null,null,null,null,null,null,null,null,null,null,null,null,null,null,null,null,null,null,null,null,null,null,null,null,null,null,null,null,null,null,null,null,null,null,null,null,null,null,null,null,null,null,null,null,null,null,null,null,null,null,null,null,null,null,null,null,null,null,null,null,null,null,null,"codifico=1","máximo"]
[null,null,null,null,null,null,null,null,null,null,null,null,null,null,null,null,null,null,null,null,null,null,null,null,null,null,null,null,null,null,null,null,null,null,null,null,null,null,null,null,null,null,null,null,null,null,null,null,null,null,null,null,null,null,null,null,null,null,null,null,null,null,null,null,null,null,null,null,null,null,null,null,null,null,null,null,null,null,{"$f":"DMAX(CA8:CC25,CB8,CA8:CA25)*1","v":0},{"$f":"MAX(CB9:CB25)","v":0}]
[null,null,null,null,null,null,null,null,null,{"$f":"I6","v":"Cuota de Facturación"},null,null,null,null,null,null,null,null,null,null,null,null,null,null,null,null,null,null,null,null,null,null,null,null,null,null,null,null,null,null,null,null,null,null,null,null,null,null,null,null,null,null,null,null,null,null,null,null,null,null,null,null,null,null,null,null,null,null,null,null,null,null,null,null,null,null,null,"geo data",{"$f":"VLOOKUP(1,CA8:CE25,3,0)","v":"ANDALUCIA"}]
[null,null,null,null,null,null,null,null,null,null,null,null,{"$f":"I7","v":2018},null,null,null,null,null,null,null,null,null,null,null,null,null,null,null,null,null,null,null,null,null,null,null,null,null,null,null,null,null,null,null,null,null,null,null,null,null,null,null,null,null,null,null,null,null,null,null,null,null,null,null,null,null,null,null,null,null,null,null,null,null,null,null,null,null,"el dato a buscar debe estar en la primera columna. "]
[null,"% i.a.",null,null,null,"% i.a.",null,null,null,null,null,null,null,null,null,null,null,null,null,null,null,null,null,null,null,null,null,null,null,null,null,null,null,null,null,null,null,null,null,null,null,null,null,null,null,null,null,null,null,null,null,null,null,null,null,null,null,null,null,null,null,null,null,null,null,null,null,null,null,null,null,null,null,null,null,null,null,null,{"$f":"VLOOKUP(1,CA8:CE25,4,0)*1","v":{"$error":"#VALUE!"}}]
[null,{"$f":"C7","v":2018},null,null,null,{"$f":"B31","v":2018},null,null,null,null,null,null,null,null,null,null,null,null,null,null,null,null,null,null,null,null,null,null,null,null,null,null,null,null,null,null,null,null,null,null,null,null,null,null,null,null,null,null,null,null,null,null,null,null,null,null,null,null,null,null,null,null,null,null,null,null,null,null,null,null,null,null,null,null,null,null,null,null,{"$f":"VLOOKUP(1,CA8:CE25,5,0)*1","v":2.5880680900719266E-2}]
[null,"Total",null,null,null,"Empresa",null,null,null,{"$f":"J5","v":"iEMPRESA"}]
[null,null,null,null,null,null,null,null,null,null,null,null,"Ámbito"]
["Ámbito",{"$f":"F34","v":"Nacional"},null,null,null,{"$f":"J34","v":"Nacional"},null,null,null,"Nacional",null,null,"Nacional"]
[]
[]
[]
[null,null,null,null,null,null,null,null,null,{"$f":"CA28","v":"ANDALUCIA"},null,null,"CCAA"]
[null,null,null,null,null,null,null,null,null,null,null,null,"Líder para la"]
[null,"% i.a.",null,null,null,"% i.a.",null,null,null,null,null,null,"Empresa"]
[null,{"$f":"B31","v":2018},null,null,null,{"$f":"B41","v":2018}]
[null,"Total",null,null,null,"Empresa",null,null,null,{"$f":"J32","v":"iEMPRESA"}]
[]
["Ámbito",{"$f":"F44","v":"ANDALUCIA"},null,null,null,{"$f":"J44","v":"ANDALUCIA"},null,null,null,{"$f":"J38","v":"ANDALUCIA"}]
[]
[]
[]
["Fuente: Cifras consolidadas del sector. Valores absolutos 2015-2018 y cifras de evolución de 2016 a la fecha. ASEMPLEO ©."]
["Nota de Confidencialidad: Este informe comparativo contiene datos redondeados que son ficticeos y serán reemplazados por los que la Empresa introduzca en \"empresa_ccaa\"."]

{"sheet":"Ayuda y Version","index":1,"n_rows":2,"n_cols":8,"rows_kept":2,"cut":false,"hidden":true,"merged":[]}
[]
[null,null,null,null,null,null,"Versión de plantilla:",2.5]

{"sheet":"pBlock","index":2,"n_rows":5,"n_cols":3,"rows_kept":5,"cut":false,"hidden":true,"merged":[]}
[]
[]
[]
[null,"Block Test"]
[null,"Info1","Info2"]

{"sheet":"pAccel0","index":3,"n_rows":30,"n_cols":42,"rows_kept":30,"cut":false,"hidden":true,"merged":[]}
["Gauge Configuration",null,null,null,null,null,null,null,null,null,null,null,null,null,"Gauge Configuration",null,null,null,null,null,null,null,null,null,null,"Gauge Configuration",null,null,null,null,null,null,null,null,null,null,"Gauge Configuration"]
[null,null,null,null,null,"Decal",null,null,null,null,null,null,null,null,null,null,null,null,null,"Decal",null,null,null,null,null,null,null,null,null,null,"Decal",null,null,null,null,null,null,null,null,null,null,"Decal"]
["Title:",{"$f":"Dashboard!#REF!","v":{"$error":"#REF!"}},null,null,null,0,null,null,null,null,null,null,null,null,"Title:",{"$f":"pAccel0!B3","v":{"$error":"#REF!"}},null,null,null,0,null,null,null,null,null,"Title:","Empresa",null,null,null,0,null,null,null,null,null,"Title:","CCAA",null,null,null,0]
["Real Value:",{"$f":"Dashboard!#REF!","v":{"$error":"#REF!"}},null,null,null,null,null,null,null,null,null,null,null,null,"Real Value:",{"$f":"Dashboard!I8","v":0},null,null,null,null,null,null,null,null,null,"Real Value:",{"$f":"Dashboard!I8","v":0},null,null,null,null,null,null,null,null,null,"Real Value:",{"$f":"Dashboard!CA27","v":0}]
[]
["Color bands",null,null,null,null,null,null,null,null,null,null,null,null,null,"Color bands",null,null,null,null,null,null,null,null,null,null,"Color bands",null,null,null,null,null,null,null,null,null,null,"Color bands"]
["Red:",2,null,null,null,null,null,null,null,null,null,null,null,null,"Red:",2,null,null,null,null,null,null,null,null,null,"Red:",2,null,null,null,null,null,null,null,null,null,"Red:",2]
["Yellow:",15,null,null,null,null,null,null,null,null,null,null,null,null,"Yellow:",15,null,null,null,null,null,null,null,null,null,"Yellow:",15,null,null,null,null,null,null,null,null,null,"Yellow:",15]
["Green:",23,null,null,null,null,null,null,null,null,null,null,null,null,"Green:",23,null,null,null,null,null,null,null,null,null,"Green:",23,null,null,null,null,null,null,null,null,null,"Green:",23]
[]
["Advanced Parameters",null,null,null,null,null,null,null,null,null,null,null,null,null,"Advanced Parameters",null,null,null,null,null,null,null,null,null,null,"Advanced Parameters",null,null,null,null,null,null,null,null,null,null,"Advanced Parameters"]
[null,"Value to 100%",{"$f":"IF(ISERROR((B4-F3/100)*B27),0,(B4-F3/100)*B27)","v":0},null,null,null,null,null,null,null,null,null,null,null,null,"Value to 100%",{"$f":"IF(ISERROR((P4-T3/100)*P27),0,(P4-T3/100)*P27)","v":0},null,null,null,null,null,null,null,null,null,"Value to 100%",{"$f":"IF(ISERROR((AA4-AE3/100)*AA27),0,(AA4-AE3/100)*AA27)","v":0},null,null,null,null,null,null,null,null,null,"Value to 100%",{"$f":"IF(ISERROR((AL4-AP3/100)*AL27),0,(AL4-AP3/100)*AL27)","v":0}]
[null,"Relative value",{"$f":"IF(C12>100%,102%,IF(C12<0%,-2%,C12))*1.506-0.253","v":-0.253},null,null,null,null,null,null,null,null,null,null,null,null,"Relative value",{"$f":"IF(Q12>100%,102%,IF(Q12<0%,-2%,Q12))*1.506-0.253","v":-0.253},null,null,null,null,null,null,null,null,null,"Relative value",{"$f":"IF(AB12>100%,102%,IF(AB12<0%,-2%,AB12))*1.506-0.253","v":-0.253},null,null,null,null,null,null,null,null,null,"Relative value",{"$f":"IF(AM12>100%,102%,IF(AM12<0%,-2%,AM12))*1.506-0.253","v":-0.253}]
[]
["Angle",null,{"$f":"C13*PI()","v":-0.79482294135821763},null,null,null,null,null,null,null,null,null,null,null,"Angle",null,{"$f":"Q13*PI()","v":-0.79482294135821763},null,null,null,null,null,null,null,null,"Angle",null,{"$f":"AB13*PI()","v":-0.79482294135821763},null,null,null,null,null,null,null,null,"Angle",null,{"$f":"AM13*PI()","v":-0.79482294135821763}]
["x",0,{"$f":"-COS(C15)","v":-0.70041115078380645},null,null,null,null,null,null,null,null,null,null,null,"x",0,{"$f":"-COS(Q15)","v":-0.70041115078380645},null,null,null,null,null,null,null,null,"x",0,{"$f":"-COS(AB15)","v":-0.70041115078380645},null,null,null,null,null,null,null,null,"x",0,{"$f":"-COS(AM15)","v":-0.70041115078380645}]
["y",0,{"$f":"SIN(C15)","v":-0.7137396022764213},null,null,null,null,null,null,null,null,null,null,null,"y",0,{"$f":"SIN(Q15)","v":-0.7137396022764213},null,null,null,null,null,null,null,null,"y",0,{"$f":"SIN(AB15)","v":-0.7137396022764213},null,null,null,null,null,null,null,null,"y",0,{"$f":"SIN(AM15)","v":-0.7137396022764213}]
[]
[null,null,null,"Value","Label",null,null,null,null,null,null,null,null,null,null,null,null,"Value","Label",null,null,null,null,null,null,null,null,null,"Value","Label",null,null,null,null,null,null,null,null,null,"Value","Label"]
[null,null,70,10,{"$f":"B26+F3","v":4},null,null,null,null,null,null,null,null,null,null,null,70,10,{"$f":"P26+T3","v":4},null,null,null,null,null,null,null,null,70,10,{"$f":"AA26+AE3","v":4},null,null,null,null,null,null,null,null,70,10,{"$f":"AL26+AP3","v":4}]
[null,null,{"$f":"B7*$C$20/$B$25","v":3.5},10,{"$f":"E20+$B$26","v":8},null,null,null,null,null,null,null,null,null,null,null,{"$f":"P7*$C$20/$B$25","v":3.5},10,{"$f":"S20+$B$26","v":8},null,null,null,null,null,null,null,null,{"$f":"AA7*$AB$20/$AA$25","v":3.5},10,{"$f":"AD20+$AA$26","v":8},null,null,null,null,null,null,null,null,{"$f":"AL7*$AM$20/$AL$25","v":3.5},10,{"$f":"AO20+$AL$26","v":8}]
[null,null,{"$f":"B8*$C$20/$B$25","v":26.25},10,12,null,null,null,null,null,null,null,null,null,null,null,{"$f":"P8*$C$20/$B$25","v":26.25},10,12,null,null,null,null,null,null,null,null,{"$f":"AA8*$AB$20/$AA$25","v":26.25},10,12,null,null,null,null,null,null,null,null,{"$f":"AL8*$AM$20/$AL$25","v":26.25},10,{"$f":"AO21+$AL$26","v":12}]
[null,null,{"$f":"B9*$C$20/$B$25","v":40.25},10,16,null,null,null,null,null,null,null,null,null,null,null,{"$f":"P9*$C$20/$B$25","v":40.25},10,16,null,null,null,null,null,null,null,null,{"$f":"AA9*$AB$20/$AA$25","v":40.25},10,16,null,null,null,null,null,null,null,null,40.25,10,16]
["White",null,23,10,20,null,null,null,null,null,null,null,null,null,"White",null,23,10,20,null,null,null,null,null,null,"White",null,23,10,20,null,null,null,null,null,null,"White",null,23,10,20]
["Total",{"$f":"SUM(B7:B24)","v":40},{"$f":"SUM(C21:C24)","v":93},10,24,null,null,null,null,null,null,null,null,null,"Total",{"$f":"SUM(P7:P24)","v":40},{"$f":"SUM(Q21:Q24)","v":93},10,24,null,null,null,null,null,null,"Total",{"$f":"SUM(AA7:AA24)","v":40},{"$f":"SUM(AB21:AB24)","v":93},10,24,null,null,null,null,null,null,"Total",{"$f":"SUM(AL7:AL24)","v":40},{"$f":"SUM(AM21:AM24)","v":93},10,24]
["Increment",{"$f":"B25/10","v":4},null,10,28,null,null,null,null,null,null,null,null,null,"Increment",{"$f":"P25/10","v":4},null,10,28,null,null,null,null,null,null,"Increment",{"$f":"AA25/10","v":4},null,10,28,null,null,null,null,null,null,"Increment",{"$f":"AL25/10","v":4},null,10,28]
["Conversion",{"$f":"100/B25","v":2.5},null,10,32,null,null,null,null,null,null,null,null,null,"Conversion",{"$f":"100/P25","v":2.5},null,10,32,null,null,null,null,null,null,"Conversion",{"$f":"100/AA25","v":2.5},null,10,32,null,null,null,null,null,null,"Conversion",{"$f":"100/AL25","v":2.5},null,10,32]
[null,null,null,10,36,null,null,null,null,null,null,null,null,null,null,null,null,10,36,null,null,null,null,null,null,null,null,null,10,36,null,null,null,null,null,null,null,null,null,10,36]
[null,null,null,10,40,null,null,null,null,null,null,null,null,null,null,null,null,10,40,null,null,null,null,null,null,null,null,null,10,40,null,null,null,null,null,null,null,null,null,10,40]
[null,null,null,33,{"$f":"F3","v":0},null,null,null,null,null,null,null,null,null,null,null,null,33,{"$f":"T3","v":0},null,null,null,null,null,null,null,null,null,33,{"$f":"AE3","v":0},null,null,null,null,null,null,null,null,null,33,{"$f":"AP3","v":0}]

{"sheet":"pAccel1","index":4,"n_rows":35,"n_cols":64,"rows_kept":35,"cut":false,"hidden":true,"merged":[]}
["Gauge Configuration",null,null,null,null,null,null,null,null,null,null,null,null,null,null,null,"Gauge Configuration",null,null,null,null,null,null,"Gauge Configuration",null,null,null,null,null,null,"Gauge Configuration",null,null,null,null,null,null,"Gauge Configuration",null,null,null,null,null,null,"Gauge Configuration",null,null,null,null,null,null,"Gauge Configuration",null,null,null,null,null,null,"Gauge Configuration"]
[null,null,null,null,null,"Decal",null,null,null,null,null,null,null,null,null,null,null,null,null,null,null,"Decal",null,null,null,null,null,null,"Decal",null,null,null,null,null,null,"Decal",null,null,null,null,null,null,"Decal",null,null,null,null,null,null,"Decal",null,null,null,null,null,null,"Decal",null,null,null,null,null,null,"Decal"]
["Title:","CPDs",null,null,null,100,null,null,null,null,null,null,null,null,null,null,"Title:","Facturación",null,null,null,100,null,"Title:","CPDs",null,null,null,100,null,"Title:","Facturación",null,null,null,100,null,"Title:","Facturación",null,null,null,100,null,"Title:","Facturación",null,null,null,100,null,"Title:","Facturación",null,null,null,100,null,"Title:","Facturación",null,null,null,100]
["Real Value:",{"$f":"Dashboard!#REF!","v":{"$error":"#REF!"}},{"$f":"Dashboard!#REF!","v":{"$error":"#REF!"}},null,null,null,null,null,null,null,null,null,null,null,null,null,"Real Value:",{"$f":"Dashboard!#REF!","v":{"$error":"#REF!"}},null,null,null,null,null,"Real Value:",{"$f":"Dashboard!#REF!","v":{"$error":"#REF!"}},null,null,null,null,null,"Real Value:",{"$f":"Dashboard!#REF!","v":{"$error":"#REF!"}},null,null,null,null,null,"Real Value:",{"$f":"Dashboard!D8","v":7.4382398707093511E-2},null,null,null,null,null,"Real Value:",{"$f":"Dashboard!$G$8","v":"n.a."},null,null,null,null,null,"Real Value:",{"$f":"Dashboard!CA31","v":2.5880680900719266E-2},null,null,null,null,null,"Real Value:",{"$f":"Dashboard!CA30","v":{"$error":"#VALUE!"}}]
[]
["Color bands"]
["Red:",-50]
["Yellow:",0]
["Green:",50]
[]
["Advanced Parameters",null,null,null,null,null,null,null,null,null,null,null,null,null,null,null,"Advanced Parameters",null,null,null,null,null,null,"Advanced Parameters",null,null,null,null,null,null,"Advanced Parameters",null,null,null,null,null,null,"Advanced Parameters",null,null,null,null,null,null,"Advanced Parameters",null,null,null,null,null,null,"Advanced Parameters",null,null,null,null,null,null,"Advanced Parameters"]
[null,"Value to 100%",{"$f":"IF(ISERROR((B4-F3/100)*B27),0,(B4-F3/100)*B27)","v":0},null,{"$f":"IF(ISERROR((C4-F3/100)*B27),0,(C4-F3/100)*B27)","v":0},null,null,null,null,null,null,null,null,null,null,null,null,"Value to 100%",{"$f":"IF(ISERROR((R4-V3/100)*R27),0,(R4-V3/100)*R27)","v":0},null,null,null,null,null,"Value to 100%",{"$f":"IF(ISERROR((Y4-AC3/100)*Y27),0,(Y4-AC3/100)*Y27)","v":0},null,null,null,null,null,"Value to 100%",{"$f":"IF(ISERROR((AF4-AJ3/100)*AF27),0,(AF4-AJ3/100)*AF27)","v":0},null,null,null,null,null,"Value to 100%",{"$f":"IF(ISERROR((AM4-AQ3/100)*AM27),0,(AM4-AQ3/100)*AM27)","v":-1.851235202585813},null,null,null,null,null,"Value to 100%",{"$f":"IF(ISERROR((AT4-AX3/100)*AT27),0,(AT4-AX3/100)*AT27)","v":0},null,null,null,null,null,"Value to 100%",{"$f":"IF(ISERROR((BA4-BE3/100)*BA27),0,(BA4-BE3/100)*BA27)","v":-1.9482386381985615},null,null,null,null,null,"Value to 100%",{"$f":"IF(ISERROR((BH4-BL3/100)*BH27),0,(BH4-BL3/100)*BH27)","v":0}]
[null,"Relative value",{"$f":"IF(B4<-100%,-100%,IF(B4>100%,100%,2*B4/1))","v":{"$error":"#REF!"}},"ojo1, todo en porcentaje, por 2, y con 1 al final en lugar de 100.",{"$f":"IF(C4<-100%,-100%,IF(C4>100%,100%,2*C4/1))","v":{"$error":"#REF!"}},null,null,null,"Todos los negritas tienen dato 50, en lugar de 100 para que la escala recorra menos. ",null,null,null,null,null,null,null,null,"Relative value",{"$f":"IF(R4<-100%,-100%,IF(R4>100%,100%,2*R4/1))","v":{"$error":"#REF!"}},null,null,null,null,null,"Relative value",{"$f":"IF(Y4<-100%,-100%,IF(Y4>100%,100%,2*Y4/1))","v":{"$error":"#REF!"}},null,null,null,null,null,"Relative value",{"$f":"IF(AF4<-100%,-100%,IF(AF4>100%,100%,2*AF4/1))","v":{"$error":"#REF!"}},null,null,null,null,null,"Relative value",{"$f":"IF(AM4<-100%,-100%,IF(AM4>100%,100%,2*AM4/1))","v":0.14876479741418702},null,null,null,null,null,"Relative value",{"$f":"IF(AT4<-100%,-100%,IF(AT4>100%,100%,2*AT4/1))","v":1},null,null,null,null,null,"Relative value",{"$f":"IF(BA4<-100%,-100%,IF(BA4>100%,100%,2*BA4/1))","v":5.1761361801438532E-2},null,null,null,null,null,"Relative value",{"$f":"IF(BH4<-100%,-100%,IF(BH4>100%,100%,2*BH4/1))","v":{"$error":"#VALUE!"}}]
[]
["Angle",null,{"$f":"C13*PI()/2","v":{"$error":"#REF!"}},null,{"$f":"E13*PI()/2","v":{"$error":"#REF!"}},null,null,null,null,null,null,null,null,null,null,null,"Angle",null,{"$f":"S13*PI()/2","v":{"$error":"#REF!"}},null,null,null,null,"Angle",null,{"$f":"Z13*PI()/2","v":{"$error":"#REF!"}},null,null,null,null,"Angle",null,{"$f":"AG13*PI()/2","v":{"$error":"#REF!"}},null,null,null,null,"Angle",null,{"$f":"AN13*PI()/2","v":0.23367919733459189},null,null,null,null,"Angle",null,{"$f":"AU13*PI()/2","v":1.5707963267948966},null,null,null,null,"Angle",null,{"$f":"BB13*PI()/2","v":8.1306556987601322E-2},null,null,null,null,"Angle",null,{"$f":"BI13*PI()/2","v":{"$error":"#VALUE!"}}]
["x",0,{"$f":"SIN(C15)","v":{"$error":"#REF!"}},{"$f":"B16","v":0},{"$f":"SIN(E15)","v":{"$error":"#REF!"}},null,null,null,null,null,null,null,null,null,null,null,"x",0,{"$f":"SIN(S15)","v":{"$error":"#REF!"}},null,null,null,null,"x",0,{"$f":"SIN(Z15)","v":{"$error":"#REF!"}},null,null,null,null,"x",0,{"$f":"SIN(AG15)","v":{"$error":"#REF!"}},null,null,null,null,"x",0,{"$f":"SIN(AN15)","v":0.23155828325215355},null,null,null,null,"x",0,{"$f":"SIN(AU15)","v":1},null,null,null,null,"x",0,{"$f":"SIN(BB15)","v":8.1217003622424747E-2},null,null,null,null,"x",0,{"$f":"SIN(BI15)","v":{"$error":"#VALUE!"}}]
["y",0,{"$f":"-COS(C15)","v":{"$error":"#REF!"}},{"$f":"B17","v":0},{"$f":"-COS(E15)","v":{"$error":"#REF!"}},null,null,null,null,null,null,null,null,null,null,null,"y",0,{"$f":"-COS(S15)","v":{"$error":"#REF!"}},null,null,null,null,"y",0,{"$f":"-COS(Z15)","v":{"$error":"#REF!"}},null,null,null,null,"y",0,{"$f":"-COS(AG15)","v":{"$error":"#REF!"}},null,null,null,null,"y",0,{"$f":"-COS(AN15)","v":-0.9728210325940303},null,null,null,null,"y",0,{"$f":"-COS(AU15)","v":-6.1257422745431001E-17},null,null,null,null,"y",0,{"$f":"-COS(BB15)","v":-0.9966964424149386},null,null,null,null,"y",0,{"$f":"-COS(BI15)","v":{"$error":"#VALUE!"}}]
[]
[null,null,null,"Value","Label"]
[null,null,50,0,50]
[null,null,{"$f":"E21","v":40},{"$f":"D31/D33","v":5},{"$f":"E20+$B$26","v":40}]
[null,null,{"$f":"E22","v":30},{"$f":"D21","v":5},{"$f":"E21+$B$26","v":30}]
[null,null,20,{"$f":"D22","v":5},20]
["White",null,10,5,10,null,null,null,null,null,null,null,null,null,null,null,"White",null,null,null,null,null,null,"White",null,null,null,null,null,null,"White",null,null,null,null,null,null,"White",null,null,null,null,null,null,"White",null,null,null,null,null,null,"White",null,null,null,null,null,null,"White"]
["Total",50,0,5,0,null,null,null,null,null,null,null,null,null,null,null,"Total",50,null,null,null,null,null,"Total",50,null,null,null,null,null,"Total",50,null,null,null,null,null,"Total",50,null,null,null,null,null,"Total",50,null,null,null,null,null,"Total",50,null,null,null,null,null,"Total",50]
["Increment",-10,-10,5,-10,null,null,null,null,null,null,null,null,null,null,null,"Increment",-10,null,null,null,null,null,"Increment",-10,null,null,null,null,null,"Increment",-10,null,null,null,null,null,"Increment",-10,null,null,null,null,null,"Increment",-10,null,null,null,null,null,"Increment",-10,null,null,null,null,null,"Increment",-10]
["Conversion",{"$f":"100/B25","v":2},-20,5,-20,null,null,null,null,null,null,null,null,null,null,null,"Conversion",{"$f":"100/R25","v":2},null,null,null,null,null,"Conversion",{"$f":"100/Y25","v":2},null,null,null,null,null,"Conversion",{"$f":"100/AF25","v":2},null,null,null,null,null,"Conversion",{"$f":"100/AM25","v":2},null,null,null,null,null,"Conversion",{"$f":"100/AT25","v":2},null,null,null,null,null,"Conversion",{"$f":"100/BA25","v":2},null,null,null,null,null,"Conversion",{"$f":"100/BH25","v":2}]
[null,null,-30,5,-30]
[null,null,-40,5,-40]
[null,null,-50,5,-50]
[null,null,null,50]
[]
[null,null,null,10]
[]
[null,null,null,{"$f":"SUM(D20:D30)","v":50}]

{"sheet":"empresa_ccaa","index":5,"n_rows":83,"n_cols":79,"rows_kept":83,"cut":false,"hidden":false,"merged":[]}
[]
[]
[null,null,null,null,null,null,null,null,null,null,null,null,{"$f":"Dashboard!M3","v":2018}]
[null,null,null,null,null,null,null,null,null,null,null,null,{"$f":"Dashboard!M4","v":"OCTUBRE"}]
[null,null,null,null,null,null,null,null,null,null,"Empresa",{"$f":"L9","v":"iEMPRESA"}]
[]
[]
[]
[null,null,"Facturación, €",null,null,"ASEMPLEO","ASEMPLEO",null,null,null,"Empresa = ","iEMPRESA"]
[null,null,"Dato acumulado a",null,{"$f":"M4","v":"OCTUBRE"},{"$f":"Dashboard!B7","v":2017},{"$f":"Dashboard!C7","v":2018},null,null,"Facturación",{"$f":"F10","v":2017},{"$f":"G10","v":2018}]
[null,null,null,null,null,null,null,"Estructura (%)",null,"Datos acumulados ",null,null,"Estructura (%)",null,null,null,null,null,null,null,null,null,null,null,null,null,null,null,null,null,null,null,null,null,null,null,null,null,null,null,null,null,null,null,null,null,null,null,null,null,null,null,null,null,null,null,null,null,null,null,null,null,null,null,null,null,null,null,null,null,null,null,null,null,null,null,null,null,"check"]
[null,null,null,null,null,{"$f":"E65","v":3085939767.2735066},{"$f":"B65","v":3315479369.4289203},{"$f":"G12/G$12","v":1},"TOTAL",null,{"$f":"SUM(K13:K29)","v":0},{"$f":"SUM(L13:L29)","v":0},{"$f":"L12/L$12","v":{"$error":"#DIV/0!"}},null,null,null,null,null,null,null,null,null,null,null,null,null,null,null,null,null,null,null,null,null,null,null,null,null,null,null,null,null,null,null,null,null,null,null,null,null,null,null,null,null,null,null,null,null,null,null,null,null,null,null,null,null,null,null,null,null,null,null,null,null,null,null,null,null,{"$f":"L12/K12-1","v":{"$error":"#DIV/0!"}}]
[null,null,null,null,null,281344044.21940112,{"$f":"B66","v":288625419.65116131},{"$f":"G13/G$12","v":8.7053903068284214E-2},"ANDALUCIA",null,null,null,{"$f":"L13/L$12","v":{"$error":"#DIV/0!"}}]
[null,null,null,null,null,169604054.9033367,166190783.11087042,{"$f":"G14/G$12","v":5.0125717759931715E-2},"ARAGON",null,null,null,{"$f":"L14/L$12","v":{"$error":"#DIV/0!"}}]
[null,null,null,null,null,59074292.715259984,61733974.347939424,1.8619924140433692E-2,"ASTURIAS",null,null,null,{"$error":"#DIV/0!"}]
[null,null,null,null,null,15892106.057092566,{"$f":"B69","v":14706108.935955891},4.4355905428206501E-3,"BALEARES",null,null,null,{"$error":"#DIV/0!"}]
[null,null,null,null,null,78062358.269388378,80490428.901127845,2.4277161741166869E-2,"CANARIAS",null,null,null,{"$error":"#DIV/0!"}]
[null,null,null,null,null,69764911.234166518,83188720.47260648,2.5091008328890746E-2,"CANTABRIA",null,null,null,{"$error":"#DIV/0!"}]
[null,null,null,null,null,128089967.97597471,145716199.56820622,4.3950265808260884E-2,"CASTILLA-LA MANCHA",null,null,null,{"$error":"#DIV/0!"}]
[null,null,null,null,null,201310957.10059419,214737555.37331906,6.4768177221475778E-2,"CASTILLA Y LEÓN",null,null,null,{"$error":"#DIV/0!"}]
[null,null,null,null,null,753447928.56242549,820399050.05021238,0.24744507766052642,"CATALUÑA",null,null,null,{"$f":"L21/L$12","v":{"$error":"#DIV/0!"}}]
[null,null,null,null,null,224736662.38882649,240813524.03015253,7.2633093799534587E-2,"COMUNIDAD VALENCIANA",null,null,null,{"$error":"#DIV/0!"}]
[null,null,null,null,null,19306564.470813364,22472286.942321345,6.7779902808419879E-3,"EXTREMADURA",null,null,null,{"$error":"#DIV/0!"}]
[null,null,null,null,null,154053613.83700904,178289299.31676883,5.3774817892315384E-2,"GALICIA",null,null,null,{"$error":"#DIV/0!"}]
[null,null,null,null,null,480458927.10074621,503887515.55915648,0.15198028985049886,"MADRID",null,null,null,{"$error":"#DIV/0!"}]
[null,null,null,null,null,169130422.23822302,187648796.03860548,5.6597787266861301E-2,"MURCIA",null,null,null,{"$error":"#DIV/0!"}]
[null,null,null,null,null,97600417.796693206,116856447.87946802,3.524571709206447E-2,"NAVARRA",null,null,null,{"$error":"#DIV/0!"}]
[null,null,null,null,null,157731184.43364656,162069759.20116287,4.8882753032807688E-2,"PAIS VASCO",null,null,null,{"$error":"#DIV/0!"}]
[null,null,null,null,null,26331353.969909195,27653500.049885936,8.3407245132848338E-3,"RIOJA (LA)",null,null,null,{"$error":"#DIV/0!"}]
[]
["Fuente: Cifras consolidadas del sector. ASEMPLEO ©."]
["Nota de Confidencialidad: Este informe comparativo se genera con los datos propios de la Empresa. "]
[]
[]
[]
[]
[]
[]
[]
[]
[]
[]
[]
[]
[]
[]
[]
[]
[]
[]
[]
[]
[]
[]
[]
[]
[]
[]
[]
["D03: ",null,null,"D03: ",null,null,"D03 : ","Variación Interanual (%)"]
["MES:","ACUMULADO A LA FECHA",null,{"$f":"A61","v":"MES:"},{"$f":"B61","v":"ACUMULADO A LA FECHA"},null,{"$f":"D61","v":"MES:"},"Tasa % i.a."]
[]
[null,"Facturación",null,null,"Facturación",null,null,"Facturación"]
[null,null,null,null,null,null,null,null,"check"]
["TOTAL",3315479369.4289203,null,"TOTAL",3085939767.2735066,null,"TOTAL",7.4382398707093511E-2,{"$f":"B65/E65-1","v":7.4382398707093511E-2}]
["ANDALUCIA",288625419.65116131,null,"ANDALUCIA",281344044.21940112,null,"ANDALUCIA",2.5880680900719266E-2,{"$f":"B66/E66-1","v":2.5880680900719266E-2}]
["ARAGON",166190783.11087042,null,"ARAGON",169604054.9033367,null,"ARAGON",-2.0124942144877478E-2,-2.0124942144877478E-2]
["ASTURIAS",61733974.347939424,null,"ASTURIAS",59074292.715259984,null,"ASTURIAS",4.5022657241097885E-2,4.5022657241097885E-2]
["BALEARES",14706108.935955891,null,"BALEARES",15892106.057092566,null,"BALEARES",-7.4628064831430585E-2,-7.4628064831430585E-2]
["CANARIAS",80490428.901127845,null,"CANARIAS",78062358.269388378,null,"CANARIAS",3.1104243909213514E-2,3.1104243909213514E-2]
["CANTABRIA",83188720.47260648,null,"CANTABRIA",69764911.234166518,null,"CANTABRIA",0.19241491175102099,0.19241491175102099]
["CASTILLA-LA MANCHA",145716199.56820622,null,"CASTILLA-LA MANCHA",128089967.97597471,null,"CASTILLA-LA MANCHA",0.13760821296744785,0.13760821296744785]
["CASTILLA Y LEÓN",214737555.37331906,null,"CASTILLA Y LEÓN",201310957.10059419,null,"CASTILLA Y LEÓN",6.6695814604943005E-2,6.6695814604943005E-2]
["CATALUÑA",820399050.05021238,null,"CATALUÑA",753447928.56242549,null,"CATALUÑA",8.8859653002868022E-2,8.8859653002868022E-2]
["COMUNIDAD VALENCIANA",240813524.03015253,null,"COMUNIDAD VALENCIANA",224736662.38882649,null,"COMUNIDAD VALENCIANA",7.1536443900331648E-2,7.1536443900331648E-2]
["EXTREMADURA",22472286.942321345,null,"EXTREMADURA",19306564.470813364,null,"EXTREMADURA",0.16397129982880965,0.16397129982880965]
["GALICIA",178289299.31676883,null,"GALICIA",154053613.83700904,null,"GALICIA",0.15731981143526763,0.15731981143526763]
["MADRID",503887515.55915648,null,"MADRID",480458927.10074621,null,"MADRID",4.8762937135514051E-2,4.8762937135514051E-2]
["MURCIA",187648796.03860548,null,"MURCIA",169130422.23822302,null,"MURCIA",0.10949167840602336,0.10949167840602336]
["NAVARRA",116856447.87946802,null,"NAVARRA",97600417.796693206,null,"NAVARRA",0.19729454563284898,0.19729454563284898]
["PAIS VASCO",162069759.20116287,null,"PAIS VASCO",157731184.43364656,null,"PAIS VASCO",2.7506131923718868E-2,2.7506131923718868E-2]
["RIOJA (LA)",27653500.049885936,null,"RIOJA (LA)",26331353.969909195,null,"RIOJA (LA)",5.0211853195534673E-2,{"$f":"B82/E82-1","v":5.0211853195534673E-2}]
["Ceuta y Melilla",null,null,"Ceuta y Melilla",null,null,"Ceuta y Melilla"]